Workbook

Sheet SCHEDULE MJL-S1-1
A1: AMEREN MISSOURI
A2: ORIGINAL COST OF GAS PLANT
A3: ="BY FUNCTIONAL CLASSIFICATION "&'SCHEDULE MJL-S3'!A3:G3 -> BY FUNCTIONAL CLASSIFICATION FOR THE TWELVE MONTHS ENDED DECEMBER 31, 2020
A4: ($000)
E7: TOTALS | G7: ADJUSTED
E8: PER | F8: ADJUSTMENTS | G8: GAS
A9: LINE | C9: FUNCTIONAL CLASSIFICATION | E9: BOOKS | F9: (1) | G9: TOTALS
C10: (A) | E10: (B) | F10: (C) | G10: (D)
A12: 1 | C12: INTANGIBLE PLANT | E12: 4924 | F12: 15184 | G12: =SUM(E12:F12) -> 20108
A14: =+A12+1 -> 2 | C14: PRODUCTION PLANT | E14: 0 | F14: 0 | G14: =SUM(E14:F14) -> 0
A16: =+A14+1 -> 3 | C16: TRANSMISSION PLANT | E16: 6761 | F16: 0 | G16: =SUM(E16:F16) -> 6761
A18: =+A16+1 -> 4 | C18: DISTRIBUTION PLANT | E18: 533640 | F18: 0 | G18: =SUM(E18:F18) -> 533640
A20: =1+A18 -> 5 | C20: GENERAL PLANT | E20: 42406 | F20: 14461 | G20: =SUM(E20:F20) -> 56867
A22: =1+A20 -> 6 | C22: INCENTIVE COMPENSATION CAPITALIZED | E22: 0 | F22: -1812 | G22: =SUM(E22:F22) -> -1812
A24: =1+A22 -> 7 | C24: TOTAL PLANT IN SERVICE | E24: =SUM(E12:E22) -> 587731 | F24: =SUM(F12:F22) -> 27833 | G24: =SUM(G12:G22) -> 615564
A28: (1) Details of pro forma adjustments per SCHEDULE MJL-S1-2.

Sheet SCHEDULE MJL-S1-2
A1: =+'SCHEDULE MJL-S1-1'!A1:G1 -> AMEREN MISSOURI
A2: EXPLANATION OF PRO FORMA ADJUSTMENTS TO PLANT
A3: =+'SCHEDULE MJL-S1-1'!A3:G3 -> BY FUNCTIONAL CLASSIFICATION FOR THE TWELVE MONTHS ENDED DECEMBER 31, 2020
A4: ($000)
A6: Line | C6: Description | K6: Amount
A8: 1 | B8: -1 | C8: Reduce Plant-in-Service for AMI software investment. | K8: -4545
A10: =+A8+1 -> 2 | B10: -2 | C10: Allocate portions of plant in service for intangible assets and multi use general facilities which are applicable to gas operations. For convenience, such facilities are recorded as electric plant but are commonly used for both electric and gas. | K10: 34190
A14: =+A10+1 -> 3 | B14: -3 | C14: Reduce Plant-in-Service for disallowed capital incentive compensation. | K14: -1812
A17: =1+A14 -> 4 | C17: Total Pro Forma Adjustments | K17: =SUM(K8:K14) -> 27833

Sheet SCHEDULE MJL-S2-1
A1: AMEREN MISSOURI
A2: TOTAL GAS RESERVES FOR DEPRECIATION AND AMORTIZATION
A3: =+'SCHEDULE MJL-S1-1'!A3:G3 -> BY FUNCTIONAL CLASSIFICATION FOR THE TWELVE MONTHS ENDED DECEMBER 31, 2020
A4: ($000)
E7: TOTALS | G7: ADJUSTED
E8: PER | F8: ADJUSTMENTS | G8: GAS
A9: LINE | C9: FUNCTIONAL CLASSIFICATION | E9: BOOKS | F9: (1) | G9: TOTALS
C10: (A) | E10: (B) | F10: (C) | G10: (D)
A12: 1 | C12: INTANGIBLE PLANT | E12: 2549 | F12: 7370 | G12: =E12+F12 -> 9919
A14: =1+A12 -> 2 | C14: PRODUCTION PLANT | E14: -779 | F14: 0 | G14: -779
A16: =1+A14 -> 3 | C16: TRANSMISSION PLANT | E16: 3098 | F16: 0 | G16: 3098
A18: =1+A16 -> 4 | C18: DISTRIBUTION PLANT | E18: 200114 | F18: 0 | G18: 200114
A20: =1+A18 -> 5 | C20: GENERAL PLANT | E20: 9297 | F20: 4192 | G20: 13489
A22: =1+A20 -> 6 | C22: INCENTIVE COMPENSATION CAPITALIZED | E22: 0 | F22: -515 | G22: =E22+F22 -> -515
A24: =1+A22 -> 7 | C24: TOTAL DEPRC. & AMORT RESERVE | E24: =E12+E14+E16+E18+E20+E22 -> 214279 | F24: =F12+F14+F16+F18+F20+F22 -> 11047 | G24: =G12+G14+G16+G18+G20+G22 -> 225326
A26: (1) Details of pro forma adjustments per SCHEDULE MJL-S2-2.

Sheet SCHEDULE MJL-S2-2
A1: =+'SCHEDULE MJL-S1-1'!A1:G1 -> AMEREN MISSOURI
A2: EXPLANATION OF PRO FORMA ADJUSTMENTS TO ACCUMULATED RESERVES
A3: =+'SCHEDULE MJL-S1-1'!A3:G3 -> BY FUNCTIONAL CLASSIFICATION FOR THE TWELVE MONTHS ENDED DECEMBER 31, 2020
A4: ($000)
A7: Line | C7: Description | K7: Amount
A9: 1 | B9: -1 | C9: Reduce Plant-in-Service for AMI software investment. | K9: -1141
A11: =+A9+1 -> 2 | B11: -2 | C11: =+'SCHEDULE MJL-S1-2'!C10 -> Allocate portions of plant in service for intangible assets and multi use general facilities which are applicable to gas operations. For convenience, such facilities are recorded as electric plant but are commonly used for both electric and gas. | K11: 12703
A12: =A11+1 -> 3
A15: =+A12+1 -> 4 | B15: -3 | C15: Reserve Balance adjustment for disallowed Incentive Compensation capitalized. | K15: -515
A18: =A15+1 -> 5 | C18: Total Pro Forma Adjustments | K18: =SUM(K9:K15) -> 11047

Sheet SCHEDULE MJL-S3
A1: AMEREN MISSOURI
A2: AVERAGE FUEL AND MATERIALS & SUPPLIES INVENTORIES
A3: FOR THE TWELVE MONTHS ENDED DECEMBER 31, 2020
A4: ($000)
D6: TOTALS | F6: ADJUSTED
D7: PER | F7: GAS
A8: LINE | C8: DESCRIPTION | D8: BOOKS | E8: ADJUSTMENTS | F8: TOTALS
C9: (A) | D9: (B) | E9: (C) | F9: (D)
A12: 1 | C12: GENERAL MATERIALS AND SUPPLIES | D12: 2325 | E12: 0 | F12: =D12+E12 -> 2325
A14: =1+A12 -> 2 | C14: GAS STORED UNDERGROUND | D14: 4338 | E14: 0 | F14: =D14+E14 -> 4338
A16: =1+A14 -> 3 | C16: TOTAL | D16: =D12+D14 -> 6663 | E16: =E12+E14 -> 0 | F16: =F12+F14 -> 6663

Sheet SCHEDULE MJL-S4
B1: AMEREN MISSOURI
B2: AVERAGE PREPAYMENTS
B3: =+'SCHEDULE MJL-S3'!A3 -> FOR THE TWELVE MONTHS ENDED DECEMBER 31, 2020
B4: ($000)
E6: TOTALS | G6: ADJUSTED
E7: PER | G7: GAS
B8: LINE | D8: DESCRIPTION | E8: BOOKS(1) | F8: ADJUSTMENTS | G8: TOTALS
D9: (A) | E9: (B) | F9: (C) | G9: (D)
B11: 1 | D11: RENTS (3) | E11: 392 | F11: -383 | G11: =E11+F11 -> 9
B12: =1+B11 -> 2 | D12: INSURANCE - DIRECT (2) | E12: 11367 | F12: -10738 | G12: 629
B13: 3 | D13: REG. COMMISSION ASSESSMENTS (3) | E13: 0 | F13: 0 | G13: 0
B14: 4 | D14: COAL CAR LEASE (2) | E14: 0 | F14: 0 | G14: 0
B15: 5 | D15: M/A COMM RADIO SYS SRVC AGREEMENT (3) | E15: 0 | F15: 0 | G15: 0
B16: 6 | D16: MEDICAL AND DENTAL VEBA (3) | E16: 4591 | F16: -4480 | G16: 111
B17: 7 | D17: SYBASE MAINTENANCE (ELEC ONLY) | E17: 0 | F17: 0 | G17: 0
B18: 8 | D18: IMAGING SOFTWARE (ELEC ONLY) | E18: 60 | F18: -60 | G18: 0
B19: 9 | D19: FUELWORKS SOFTWARE (ELEC ONLY) | E19: 0 | F19: 0 | G19: 0
B20: 10 | D20: MICROSOFT ENTERPRISE APPLICATIONS (3) | E20: 0 | F20: 0 | G20: 0
B21: 11 | D21: SECUREWORKS APPLICATIONS (ELEC ONLY) | E21: 0 | F21: 0 | G21: 0
B22: 12 | D22: ARBOR NEWSTAR SERVICE FEE (3) | E22: 0 | F22: 0 | G22: 0
B23: 13 | D23: OPTIV GIGAMON (3) | E23: 0 | F23: 0 | G23: 0
B24: 14 | D24: CAROUSEL (AVAYA) MAINTENANCE (3) | E24: 0 | F24: 0 | G24: 0
B25: 15 | D25: ENERGY EFFICIENCY PROGRAM VENDORS (2) | E25: 0 | F25: 0 | G25: 0
B26: 16 | D26: NSR & OPACITY LITIGATION (2) | E26: 0 | F26: 0 | G26: 0
B27: 17 | D27: ENERGY EFFICENCY PROGRAM VENDORS (GAS ONLY) | E27: 0 | F27: 0 | G27: 0
B28: 18 | D28: CRM SALESFORCE SUBSCRIPTION (3) | E28: 0 | F28: 0 | G28: 0
B29: 19 | D29: KANSAS CITY POWER & LIGHT (ELEC ONLY) | E29: 2034 | F29: -2034 | G29: 0
B30: 20 | D30: PALO ALTO ENTERPRISE (3) | E30: 123 | F30: -120 | G30: 3
B31: 21 | D31: RCGA MEMBERSHIP DUES (ELEC ONLY) | E31: 33 | F31: -33 | G31: 0
B32: 22 | D32: AGA MEMBERSHIP DUES (GAS ONLY) | E32: 14 | F32: 0 | G32: 14
B33: 23 | D33: ENERGY EFFICENCY MO COLLABORATIVE (GAS ONLY) | E33: 0 | F33: 0 | G33: 0
B34: 24 | D34: LOW INCOME WEATHERIZATION - DIRECT (2) | E34: 386 | F34: -302 | G34: 84
B36: =1+B34 -> 25 | D36: TOTAL AVERAGE PREPAYMENTS | E36: =SUM(E11:E34) -> 19000 | F36: =SUM(F11:F34) -> -18150 | G36: =SUM(G11:G34) -> 850
B38: =1+B36 -> 26 | C38: -1 | D38: Reflects 13 month average
B39: =1+B38 -> 27 | C39: -2 | D39: Directly assigned to electric or gas.
B40: =1+B39 -> 28 | C40: -3 | D40: Allocated to gas based on operating expenses excluding purchased power, fuel adjustment clause and purchased gas.
C44: PRO FORMA ADJUSTMENT
B46: =B40+1 -> 29 | C46: -1 | D46: Eliminate portions of prepayments which are applicable to electric operations. Allocated between | G46: =+F36 -> -18150
B47: =1+B46 -> 30 | D47: electric and gas operations based on operating expenses excluding purchased power, fuel adjustment clause
B48: =1+B47 -> 31 | D48: and purchased gas.

Sheet SCHEDULE MJL-S5
A1: AMEREN MISSOURI
A2: TOTAL GAS CASH WORKING CAPITAL
A3: =+'SCHEDULE MJL-S3'!A3 -> FOR THE TWELVE MONTHS ENDED DECEMBER 31, 2020
A4: ($000)
J6: CASH WORKING
E7: REVENUE | F7: EXPENSE | G7: NET | I7: TEST YEAR | J7: CAPITAL
A8: LINE | C8: DESCRIPTION | E8: LAG | F8: LEAD | G8: LEAD/LAG | H8: FACTOR | I8: EXPENSE | J8: REQUIREMENT
C9: (A) | E9: (B) | F9: (C) | G9: (D) | H9: (E) | I9: (F) | J9: (G)
A11: 1 | C11: PAYROLL & WITHHOLDINGS | E11: 39.42 | F11: -10.9 | G11: 28.52 | H11: 0.078137 | I11: 16413 | J11: 1282
A12: =1+A11 -> 2 | C12: PENSIONS AND OPEBs | E12: 39.42 | F12: -15.7 | G12: 23.72 | H12: 0.064986 | I12: -567 | J12: -37
A13: 3 | C13: OTHER EMPLOYEE BENEFITS | E13: 39.42 | F13: -17.65 | G13: 21.77 | H13: 0.059644 | I13: 2546 | J13: 152
A14: 4 | C14: FUEL | E14: 39.42 | F14: -39.42 | G14: 0 | H14: 0 | I14: 42944 | J14: 0
A15: 5 | C15: INCENTIVE COMPENSATION | E15: 39.42 | F15: -250.8 | G15: -211.38 | H15: -0.579123 | I15: 1699 | J15: -984
A16: 6 | C16: UNCOLLECTIBLE ACCOUNTS | E16: 39.42 | F16: -39.42 | G16: 0 | H16: 0 | I16: 646 | J16: 0
A17: 7 | C17: OTHER OPERATING EXPENSES | E17: 39.42 | F17: -43.85 | G17: -4.43 | H17: -0.012137 | I17: 14320 | J17: -174
A18: 8
A19: 9 | C19: TOTAL O&M EXPENSES | I19: 35056
A21: =1+A19 -> 10 | C21: TOTAL CASH WORKING CAPITAL REQUIREMENT | J21: =SUM(J11:J17) -> 239
A23: =1+A21 -> 11 | C23: FICA - EMPLOYER'S PORTION | E23: 39.42 | F23: -9.38 | G23: 30.04 | H23: 0.082301 | I23: 1080 | J23: 89
A24: =1+A23 -> 12 | C24: FEDERAL UNEMPLOYMENT TAXES | E24: 39.42 | F24: -9.38 | G24: 30.04 | H24: 0.082301 | I24: 8 | J24: 1
A25: =1+A24 -> 13 | C25: PROPERTY TAXES | E25: 39.42 | F25: -183 | G25: -143.58 | H25: -0.39337 | I25: 8126 | J25: -3197
A26: 14 | C26: SALES TAXES | E26: 39.42 | F26: -9.31 | G26: 30.11 | H26: 0.082493 | I26: 3115 | J26: 257
A27: 15 | C27: SELF PROCURED INSURANCE TAX | E27: 39.42 | F27: -241.5 | G27: -202.08 | H27: -0.553644 | I27: 8 | J27: -4
A28: 16 | C28: GROSS RECEIPTS TAXES | E28: 24.21 | F28: -26.14 | G28: -1.93 | H28: -0.005288 | I28: 5812 | J28: -31
A30: =1+A28 -> 17 | C30: TOTAL TAXES AND OTHER EXPENSES | I30: =SUM(I23:I28) -> 18149
A32: =1+A30 -> 18 | C32: NET CUSTOMER SUPPLIED FUNDS | J32: =SUM(J23:J28) -> -2885
A34: =1+A32 -> 19 | C34: NET CASH WORKING CAPITAL REQUIREMENT | J34: =J21+J32 -> -2646

Sheet SCHEDULE MJL-S6
A1: AMEREN MISSOURI
A2: TOTAL GAS FEDERAL AND STATE INCOME TAX AND CITY EARNINGS TAX CASH REQUIREMENTS
A3: AND INTEREST EXPENSE CASH REQUIREMENT
A4: ='SCHEDULE MJL-S5'!A3 -> FOR THE TWELVE MONTHS ENDED DECEMBER 31, 2020
A5: ($000)
J8: CASH WORKING
E9: REVENUE | F9: EXPENSE | G9: NET | I9: TEST YEAR | J9: CAPITAL
A10: LINE | C10: DESCRIPTION | E10: LAG | F10: LEAD (1) | G10: LEAD/LAG | H10: FACTOR | I10: EXPENSE | J10: REQUIREMENT
C11: (A) | E11: (B) | F11: (C) | G11: (D) | H11: (E) | I11: (F) | J11: (G)
A14: 1 | C14: FEDERAL INCOME TAX CASH REQUIREMENT | E14: 39.42 | F14: -38 | G14: 1.42 | H14: 0.00389 | I14: 3769 | J14: =ROUND(+H14*I14,0) -> 15
A17: =1+A14 -> 2 | C17: STATE INCOME TAX CASH REQUIREMENT | E17: 39.42 | F17: -38 | G17: 1.42 | H17: 0.00389 | I17: 669 | J17: =ROUND(+H17*I17,0) -> 3
A20: =1+A17 -> 3 | C20: CITY EARNINGS TAX CASH REQUIREMENT | E20: 39.42 | F20: -274.5 | G20: -235.08 | H20: -0.644055 | I20: -45 | J20: =ROUND(+H20*I20,0) -> 29
A23: =1+A20 -> 4 | C23: INTEREST EXPENSE CASH REQUIREMENT | E23: 39.42 | F23: -91.37 | G23: -51.95 | H23: -0.142329 | I23: 5794 | J23: =ROUND(+H23*I23,0) -> -825

Sheet SCHEDULE MJL-S7
A1: AMEREN MISSOURI
A2: TOTAL GAS AVERAGE CUSTOMER ADVANCES FOR CONSTRUCTION AND
A3: AVERAGE CUSTOMER DEPOSITS
A4: ='SCHEDULE MJL-S4'!B3 -> FOR THE TWELVE MONTHS ENDED DECEMBER 31, 2020
A5: ($000)
A8: LINE | C8: DESCRIPTION | E8: TOTAL GAS
C9: (A) | E9: (B)
A13: =1 -> 1 | C13: AVERAGE CUSTOMER ADVANCES FOR CONSTRUCTION | E13: -445
A16: =1+A13 -> 2 | C16: AVERAGE CUSTOMER DEPOSITS | E16: -711

Sheet SCHEDULE MJL-S8
A1: AMEREN MISSOURI
A2: OTHER REGULATORY ASSETS
A3: AND REGULATORY LIABILITIES
A4: =+'SCHEDULE MJL-S9'!A3:H3 -> FOR THE TWELVE MONTHS ENDED DECEMBER 31, 2020
A5: ($000)
H9: TOTAL
A10: LINE | C10: DESCRIPTION | H10: GAS (1)
C11: (A) | H11: (B)
A15: =1 -> 1 | C15: PENSIONS | H15: -513
A18: =1+A15 -> 2 | C18: OTHER POST-EMPLOYMENT BENEFITS | H18: -933
A22: =1+A18 -> 3 | C22: (1) A positive balance is a Regulatory Asset and a negative balance is a
A23: =1+A22 -> 4 | C23: Regulatory Liability.

Sheet SCHEDULE MJL-S9
A1: AMEREN MISSOURI
A2: ACCUMULATED DEFERRED INCOME TAXES
A3: =+'SCHEDULE MJL-S3'!A3:G3 -> FOR THE TWELVE MONTHS ENDED DECEMBER 31, 2020
A4: ($000)
F6: TOTAL
F7: GAS | H7: GAS
A8: LINE | C8: DESCRIPTION | F8: PER BOOKS | G8: ADJUSTMENTS | H8: TOTAL
C9: (A) | F9: (B) | G9: (C) | H9: (D)
A11: 1 | C11: ACCOUNT 190 | F11: 1561 | G11: 0 | H11: =+F11+G11 -> 1561
A13: =1+A11 -> 2 | C13: ACCOUNT 282 | F13: -79661 | G13: 0 | H13: =+F13+G13 -> -79661
A15: =1+A13 -> 3 | C15: ACCOUNT 283 | F15: -250 | G15: 0 | H15: =+F15+G15 -> -250
A17: =1+A15 -> 4 | C17: TOTAL ACCUMULATED DEFERRED INCOME TAXES | F17: =SUM(F11:F16) -> -78350 | G17: =SUM(G11:G16) -> 0 | H17: =SUM(H11:H16) -> -78350

Sheet SCHEDULE MJL-S10
A1: AMEREN MISSOURI
A2: TOTAL GAS PER BOOK AND PRO FORMA OPERATING REVENUES
A3: ='SCHEDULE MJL-S5'!A3 -> FOR THE TWELVE MONTHS ENDED DECEMBER 31, 2020
A4: ($000)
F8: ADJUSTED
D9: TOTAL | F9: TOTAL
A10: LINE | C10: DESCRIPTION | D10: GAS | E10: ADJUSTMENTS | F10: GAS
C11: (A) | D11: (B) | E11: (C) | F11: (D)
C13: OPERATING REVENUES
A14: 1 | C14: RETAIL REVENUES | D14: 108814 | E14: -47418 | F14: =D14+E14 -> 61396
A15: =1+A14 -> 2 | C15: TRANSPORTATION | D15: 13442 | E15: 777 | F15: =D15+E15 -> 14219
A16: 3 | C16: PROVISION FOR RATE REFUNDS | D16: 769 | E16: -769 | F16: =D16+E16 -> 0
A17: =1+A16 -> 4 | C17: OTHER GAS REVENUES | D17: 1561 | E17: 291 | F17: =D17+E17 -> 1852
A19: =+A17+1 -> 5 | C19: TOTAL REVENUES PER BOOKS | D19: =SUM(D14:D18) -> 124586 | E19: -47119 | F19: =SUM(F14:F18) -> 77467
C23: PRO FORMA ADJUSTMENTS:
A24: =1+A19 -> 6 | B24: -1 | C24: REMOVE ADD ON REVENUE TAX | D24: -5763
A25: =1+A24 -> 7 | B25: -2 | C25: ADJUSTMENT TO REFLECT NORMAL WEATHER | D25: 961
A26: 8 | B26: -3 | C26: ELIMINATE PGA REVENUES | D26: -42475
A27: =1+A26 -> 9 | B27: -4 | C27: ADJUST FOR BILLING UNITS | D27: 750
A28: 10 | B28: -5 | C28: ELIMINATE UNBILLED REVENUE | D28: -1385
A29: 11 | B29: -6 | C29: SOFTWARE RENTAL ADJUSTMENT | D29: 153
A30: 12 | B30: -7 | C30: REMOVE BOA LEASE REVENUES | D30: -72
A31: 13 | B31: -8 | C31: GROWTH ADJUSTMENT | D31: 249
A32: 14 | B32: -9 | C32: INTERCOMPANY FACILITY REVENUES | D32: 42
A33: 15 | B33: -10 | C33: DISCONNECT/RECONNECT FEE REVENUES | D33: 16
A34: 16 | B34: -11 | C34: DAYS & LEAP YEAR ADJUSTMENT | D34: 61
A35: 17 | B35: -12 | C35: COVID ADJUSTMENT | D35: 193
A36: 18 | B36: -13 | C36: LATE FEE REVENUE NORMALIZATION | D36: 151
A38: =1+A36 -> 19 | C38: TOTAL PRO FORMA ADJUSTMENTS | E38: =SUM(D24:D36) -> -47119

Sheet SCHEDULE MJL-S11-1
F1: #1 | G1: #2 | H1: #3 | I1: #4 | J1: #5 | K1: #6 | L1: #7 | M1: #8 | R1: #9 | S1: #10 | T1: #11 | U1: #12 | V1: #13 | W1: #14 | X1: #15 | Y1: #16 | Z1: #17 | AA1: #18 | AF1: #19 | AG1: #20 | AH1: #21 | AI1: #22 | AJ1: #23 | AK1: #24 | AL1: #25 | AM1: #26 | AN1: #27 | AO1: #28 | AT1: #29 | AU1: #30
C2: Title included in Page header for printing purposes. | G2: SHORT-TERM | H2: LONG-TERM | R2: PRO FORMA | U2: NON- | V2: REBASE | W2: AMORTIZE | X2: ANNUALIZE | Z2: REMOVE
E3: TOTAL | G3: INCENTIVE | H3: INCENTIVE | I3: BAD DEBT | K3: ELIMINATE | L3: ADD INTEREST | R3: MEDICAL & | S3: NORMALIZE | T3: INTENTIONALLY | U3: QUALIFIED | V3: PENSION | W3: PENSION | X3: DEPRECIATION | Y3: BOA | Z3: ELECTRIC COSTS | AF3: ALLOCATION | AG3: INTENTIONALLY | AH3: REMOVE | AI3: BOARD OF | AJ3: SOFTWARE | AK3: INTERCOMPANY | AL3: EV | AM3: CUSTOMER | AN3: INTENTIONALLY | AO3: CALL CENTER | AT3: NORMALIZE | AV3: TOTAL | AW3: PRO FORMA
E4: PER | F4: LABOR | G4: COMPENSATN | H4: COMPENSATN | I4: EXPENSE | J4: STAFFING | K4: PURCHASED | L4: ON CUSTOMER | M4: INSURANCE | R4: BENEFIT | S4: AAO COSTS/ | T4: LEFT | U4: PENSION | V4: AND OPEB | W4: AND OPEB | X4: AND RATE | Y4: RENTAL | Z4: ALLOCATED | AA4: DEPR TO O&M | AF4: FACTOR | AG4: LEFT | AH4: ALCOHOL | AI4: DIRECTORS | AJ4: RENTAL | AK4: FACILITY | AL4: INCENTIVE | AM4: CONVENIENCE | AN4: LEFT | AO4: COST | AT4: INJURIES & | AU4: MPSC | AV4: PRO FORMA | AW4: GAS
C5: LINE | D5: FUNCTIONAL CLASSIFICATION | E5: BOOKS | F5: ADJUSTMENT | G5: ADJUSTMENT | H5: ADJUSTMENT | I5: TO WRITEOFFS | J5: ADJUSTMENT | K5: GAS EXPENSE | L5: DEPOSITS | M5: ADJUST. | P5: LINE | Q5: FUNCTIONAL CLASSIFICATION | R5: ADJUST. | S5: SAVINGS | T5: BLANK | U5: ADJUST. | V5: TRACKER | W5: TRACKER | X5: CASE EXPENSE | Y5: EXPENSE | Z5: TO GAS | AA5: ADJUSTMENT | AD5: LINE | AE5: FUNCTIONAL CLASSIFICATION | AF5: ADJUSTMENT | AG5: BLANK | AH5: PURCHAES | AI5: EXPENSE | AJ5: EXPENSE | AK5: RENT | AL5: ADJUSTMENT | AM5: FEES | AN5: BLANK | AO5: ADJUSTMENT | AR5: LINE | AS5: FUNCTIONAL CLASSIFICATION | AT5: DAMAGES | AU5: ASSESSMENT | AV5: ADJUSTMENT | AW5: TOTALS
D6: (A) | E6: (B) | F6: (C) | G6: (D) | H6: (E) | I6: (F) | J6: (G) | K6: (H) | L6: (I) | M6: (J) | Q6: (A) | R6: (B) | S6: (C) | T6: (D) | U6: (E) | V6: (F) | W6: (G) | X6: (H) | Y6: (I) | Z6: (J) | AA6: (K) | AE6: (A) | AF6: (B) | AG6: (C) | AH6: (D) | AI6: (E) | AJ6: (F) | AK6: (G) | AL6: (H) | AM6: (I) | AN6: (J) | AO6: (K) | AS6: (A) | AT6: (B) | AU6: (C) | AV6: (D) | AW6: (E)
C9: =1 -> 1 | D9: PRODUCTION: | E9: 43713 | F9: 10 | G9: -4 | H9: -15 | I9: 0 | J9: 0 | K9: -42944 | L9: 0 | M9: 0 | P9: =1 -> 1 | Q9: PRODUCTION: | R9: 0 | S9: 0 | T9: 0 | U9: 0 | V9: 0 | W9: 0 | X9: 0 | Y9: 0 | Z9: 0 | AA9: 0 | AD9: =1 -> 1 | AE9: PRODUCTION: | AF9: 0 | AG9: 0 | AH9: 0 | AI9: 0 | AJ9: 0 | AK9: 0 | AL9: 0 | AM9: 0 | AN9: 0 | AO9: 0 | AR9: =1 -> 1 | AS9: PRODUCTION: | AT9: 0 | AU9: 0 | AV9: =SUM(F9:M9,R9:AA9,AF9:AO9,AT9:AU9) -> -42953 | AW9: =+E9+AV9 -> 760
C11: =1+C9 -> 2 | D11: TOTAL TRANSMISSION EXPENSES: | E11: 8 | F11: 0 | G11: 0 | H11: 0 | I11: 0 | J11: 0 | K11: 0 | L11: 0 | M11: 0 | P11: =1+P9 -> 2 | Q11: TOTAL TRANSMISSION EXPENSES: | R11: 0 | S11: 0 | T11: 0 | U11: 0 | V11: 0 | W11: 0 | X11: 0 | Y11: 0 | Z11: 0 | AA11: 0 | AD11: =1+AD9 -> 2 | AE11: TOTAL TRANSMISSION EXPENSES: | AF11: 0 | AG11: 0 | AH11: 0 | AI11: 0 | AJ11: 0 | AK11: 0 | AL11: 0 | AM11: 0 | AN11: 0 | AO11: 0 | AR11: =1+AR9 -> 2 | AS11: TOTAL TRANSMISSION EXPENSES: | AT11: 0 | AU11: 0 | AV11: =SUM(F11:M11,R11:AA11,AF11:AO11,AT11:AU11) -> 0 | AW11: =+E11+AV11 -> 8
C13: =1+C11 -> 3 | D13: DISTRIBUTION EXPENSES: | E13: 14480 | F13: 182 | G13: -43 | H13: -47 | I13: 0 | J13: 0 | K13: 0 | L13: 0 | M13: 0 | P13: =1+P11 -> 3 | Q13: DISTRIBUTION EXPENSES: | R13: 0 | S13: -165 | T13: 0 | U13: 0 | V13: 0 | W13: 0 | X13: 0 | Y13: 0 | Z13: 0 | AA13: -66 | AD13: =1+AD11 -> 3 | AE13: DISTRIBUTION EXPENSES: | AF13: 1 | AG13: 0 | AH13: 0 | AI13: 0 | AJ13: 0 | AK13: 0 | AL13: 0 | AM13: 0 | AN13: 0 | AO13: 0 | AR13: =1+AR11 -> 3 | AS13: DISTRIBUTION EXPENSES: | AT13: 0 | AU13: 0 | AV13: =SUM(F13:M13,R13:AA13,AF13:AO13,AT13:AU13) -> -138 | AW13: =+E13+AV13 -> 14342
C15: =1+C13 -> 4 | D15: CUSTOMER ACCOUNTING EXPENSES: | E15: 5680 | F15: 64 | G15: -15 | H15: -12 | I15: -104 | J15: 0 | K15: 0 | L15: 30 | M15: 0 | P15: =1+P13 -> 4 | Q15: CUSTOMER ACCOUNTING EXPENSES: | R15: 0 | S15: 0 | T15: 0 | U15: 0 | V15: 0 | W15: 0 | X15: 0 | Y15: 0 | Z15: 0 | AA15: 0 | AD15: =1+AD13 -> 4 | AE15: CUSTOMER ACCOUNTING EXPENSES: | AF15: 0 | AG15: 0 | AH15: 0 | AI15: 0 | AJ15: 0 | AK15: 0 | AL15: 0 | AM15: 461 | AN15: 0 | AO15: 11 | AR15: =1+AR13 -> 4 | AS15: CUSTOMER ACCOUNTING EXPENSES: | AT15: 0 | AU15: 0 | AV15: =SUM(F15:M15,R15:AA15,AF15:AO15,AT15:AU15) -> 435 | AW15: =+E15+AV15 -> 6115
C17: =1+C15 -> 5 | D17: CUSTOMER SERV. & INFO. EXPENSES: | E17: 805 | F17: 0 | G17: 0 | H17: -1 | I17: 0 | J17: 0 | K17: 0 | L17: 0 | M17: 0 | P17: =1+P15 -> 5 | Q17: CUSTOMER SERV. & INFO. EXPENSES: | R17: 0 | S17: 0 | T17: 0 | U17: 0 | V17: 0 | W17: 0 | X17: 0 | Y17: 0 | Z17: 0 | AA17: 0 | AD17: =1+AD15 -> 5 | AE17: CUSTOMER SERV. & INFO. EXPENSES: | AF17: 0 | AG17: 0 | AH17: 0 | AI17: 0 | AJ17: 0 | AK17: 0 | AL17: 0 | AM17: 0 | AN17: 0 | AO17: 0 | AR17: =1+AR15 -> 5 | AS17: CUSTOMER SERV. & INFO. EXPENSES: | AT17: 0 | AU17: 0 | AV17: =SUM(F17:M17,R17:AA17,AF17:AO17,AT17:AU17) -> -1 | AW17: =+E17+AV17 -> 804
C19: =1+C17 -> 6 | D19: SALES EXPENSES: | E19: 54 | F19: 1 | G19: 0 | H19: 0 | I19: 0 | J19: 0 | K19: 0 | L19: 0 | M19: 0 | P19: =1+P17 -> 6 | Q19: SALES EXPENSES: | R19: 0 | S19: 0 | T19: 0 | U19: 0 | V19: 0 | W19: 0 | X19: 0 | Y19: 0 | Z19: 0 | AA19: 0 | AD19: =1+AD17 -> 6 | AE19: SALES EXPENSES: | AF19: 0 | AG19: 0 | AH19: 0 | AI19: 0 | AJ19: 0 | AK19: 0 | AL19: 0 | AM19: 0 | AN19: 0 | AO19: 0 | AR19: =1+AR17 -> 6 | AS19: SALES EXPENSES: | AT19: 0 | AU19: 0 | AV19: =SUM(F19:M19,R19:AA19,AF19:AO19,AT19:AU19) -> 1 | AW19: =+E19+AV19 -> 55
C21: =1+C19 -> 7 | D21: ADMINISTRATIVE & GENERAL EXPENSES: | E21: 13156 | F21: 89 | G21: -30 | H21: -368 | I21: 0 | J21: -55 | K21: 0 | L21: 0 | M21: 41 | P21: =1+P19 -> 7 | Q21: ADMINISTRATIVE & GENERAL EXPENSES: | R21: 130 | S21: -21 | T21: 0 | U21: 35 | V21: 260 | W21: -20 | X21: 213 | Y21: -127 | Z21: -14 | AA21: 0 | AD21: =1+AD19 -> 7 | AE21: ADMINISTRATIVE & GENERAL EXPENSES: | AF21: 53 | AG21: 0 | AH21: -1 | AI21: -18 | AJ21: -22 | AK21: 38 | AL21: -1 | AM21: 0 | AN21: 0 | AO21: 0 | AR21: =1+AR19 -> 7 | AS21: ADMINISTRATIVE & GENERAL EXPENSES: | AT21: -360 | AU21: -6 | AV21: =SUM(F21:M21,R21:AA21,AF21:AO21,AT21:AU21) -> -184 | AW21: =+E21+AV21 -> 12972
C23: =1+C21 -> 8 | D23: TOTAL OPERATIONS & MAINTENANCE EXPENSES | E23: =SUM(E9:E21) -> 77896 | F23: =SUM(F9:F21) -> 346 | G23: -92 | H23: -443 | I23: =SUM(I9:I21) -> -104 | J23: -55 | K23: =SUM(K9:K21) -> -42944 | L23: 30 | M23: 41 | P23: =1+P21 -> 8 | Q23: TOTAL OPERATIONS & MAINTENANCE EXPENSES | R23: =SUM(R9:R21) -> 130 | S23: =SUM(S9:S21) -> -186 | T23: 0 | U23: 35 | V23: 260 | W23: -20 | X23: 213 | Y23: =SUM(Y9:Y21) -> -127 | Z23: =SUM(Z9:Z21) -> -14 | AA23: -66 | AD23: =1+AD21 -> 8 | AE23: TOTAL OPERATIONS & MAINTENANCE EXPENSES | AF23: =SUM(AF9:AF21) -> 54 | AG23: =SUM(AG9:AG21) -> 0 | AH23: =SUM(AH9:AH21) -> -1 | AI23: -18 | AJ23: -22 | AK23: 38 | AL23: -1 | AM23: 461 | AN23: =SUM(AN9:AN21) -> 0 | AO23: 11 | AR23: =1+AR21 -> 8 | AS23: TOTAL OPERATIONS & MAINTENANCE EXPENSES | AT23: =SUM(AT9:AT21) -> -360 | AU23: =SUM(AU9:AU21) -> -6 | AV23: =SUM(AV9:AV21) -> -42840 | AW23: =SUM(AW9:AW21) -> 35056
C25: =1+C23 -> 9 | D25: NOTE: See SCHEDULE MJL-S11-5 for explanation of the pro forma adjustments. | P25: =1+P23 -> 9 | Q25: =D25 -> NOTE: See SCHEDULE MJL-S11-5 for explanation of the pro forma adjustments. | AD25: =1+AD23 -> 9 | AE25: =D25 -> NOTE: See SCHEDULE MJL-S11-5 for explanation of the pro forma adjustments. | AR25: =1+AR23 -> 9 | AS25: =D25 -> NOTE: See SCHEDULE MJL-S11-5 for explanation of the pro forma adjustments.
A45: SCHEDULE MJL-S11-1 | N45: SCHEDULE MJL-S11-2 | AB45: SCHEDULE MJL-S11-3 | AP45: SCHEDULE MJL-S11-4

Sheet SCHEDULE MJL-S11-5
A1: AMEREN MISSOURI
A2: GAS OPERATING AND MAINTENANCE EXPENSE
A3: PRO FORMA ADJUSTMENTS
A4: ='SCHEDULE MJL-S5'!A3 -> FOR THE TWELVE MONTHS ENDED DECEMBER 31, 2020
A5: ($000)
B6: PRO FORMA | L6: TOTAL
A7: LINE | B7: ITEM NO. | C7: DESCRIPTION | L7: AMOUNT
B8: (A) | C8: (B) | L8: (C)
A10: 1 | B10: -1 | C10: Increased labor expense from annualizing the average 1.83% wage increase for management employees effective January 1, 2021, and the 2.50% wage increase for the Company's union employees effective Jan 1, 2021 per the labor contracts. | L10: ='SCHEDULE MJL-S11-1'!F23 -> 346
A11: =1+A10 -> 2
A12: =1+A11 -> 3
A14: =1+A12 -> 4 | B14: -2 | C14: Decrease the incentive compensation expense for the incentive compensation applicable to AMS and Ameren Missouri officers related to earnings per share targets. | L14: ='SCHEDULE MJL-S11-1'!G23 -> -92
A15: =1+A14 -> 5
A17: =1+A15 -> 6 | B17: -3 | C17: Eliminate the long term incentive compensation related to earnings per share targets. | L17: ='SCHEDULE MJL-S11-1'!H23 -> -443
A19: =1+A17 -> 7 | B19: -4 | C19: To adjust bad debt expense to write-offs. | L19: ='SCHEDULE MJL-S11-1'!I23 -> -104
A21: =1+A19 -> 8 | B21: -5 | C21: Management and Contract salaries annualized for increased headcount (-54 Ameren MO and 56 Ameren Services employees) | L21: ='SCHEDULE MJL-S11-1'!J23 -> -55
A24: =1+A21 -> 9 | B24: -6 | C24: Eliminate cost of purchased gas and other related costs and expenses that are collected through the PGA | L24: =+'SCHEDULE MJL-S11-1'!K23 -> -42944
A26: =1+A24 -> 10 | B26: -7 | C26: Increase in customer accounting expenses to reflect interest expense at 4.25% on the average customer deposit | L26: ='SCHEDULE MJL-S11-1'!L23 -> 30
A27: =1+A26 -> 11 | C27: balance.
A29: =1+A27 -> 12 | B29: -8 | C29: Annualize insurance expense based upon current insurance premiums. | L29: ='SCHEDULE MJL-S11-1'!M23 -> 41
A31: =1+A29 -> 13 | B31: -9 | C31: Increase administrative and general expenses to reflect the annualized true-up period in the other employee benefit expenses. | L31: ='SCHEDULE MJL-S11-1'!R23 -> 130
A32: =1+A31 -> 14
A34: =1+A32 -> 15 | B34: -10 | C34: To adjust costs related to COVID-19 pandemic to normal levels. | L34: ='SCHEDULE MJL-S11-1'!S23 -> -186
A36: =1+A34 -> 16 | B36: -11 | C36: Intentionally left blank | L36: ='SCHEDULE MJL-S11-1'!T23 -> 0
A38: =1+A36 -> 17 | B38: -12 | C38: Increase non-qualified pension expense to reflect current level of expense. | L38: ='SCHEDULE MJL-S11-1'!U23 -> 35
A40: =1+A38 -> 18 | B40: -13 | C40: Rebase Pension and OPEB Tracker to year 2021 level. | L40: ='SCHEDULE MJL-S11-1'!V23 -> 260
A42: =1+A40 -> 19 | B42: -14 | C42: Update the amortization of the net regulatory liabilities for Pension and OPEB Tracker. | L42: ='SCHEDULE MJL-S11-1'!W23 -> -20
A44: =1+A42 -> 20 | B44: -15 | C44: To annualize rate case expense over a 2 year period. | L44: =+'SCHEDULE MJL-S11-1'!X23 -> 213
A45: =1+A44 -> 21 | C45: To annualize depreciation study expense over a 5 year period.
A47: =1+A45 -> 22 | B47: -16 | C47: To remove rental expense for the Bank of America Lease | L47: =+'SCHEDULE MJL-S11-1'!Y23 -> -127
A49: =A47+1 -> 23 | B49: -17 | C49: To remove Electric Costs Allocated to Gas | L49: ='SCHEDULE MJL-S11-1'!Z23 -> -14
A51: =A49+1 -> 24 | B51: -18 | C51: Decrease distribution expenses for changes in depreciation charged to O&M | L51: ='SCHEDULE MJL-S11-1'!AA23 -> -66
A53: =A51+1 -> 25 | B53: -19 | C53: To adjust Allocation Factors to 2021 levels. | L53: ='SCHEDULE MJL-S11-1'!AF23 -> 54
A55: =A53+1 -> 26 | B55: -20 | C55: Intentionally left blank | L55: ='SCHEDULE MJL-S11-1'!AG23 -> 0
A57: =A55+1 -> 27 | B57: -21 | C57: Remove alcohol expenses | L57: ='SCHEDULE MJL-S11-1'!AH23 -> -1
A59: =A57+1 -> 28 | B59: -22 | C59: To remove certain Board of Directors travel costs. | L59: ='SCHEDULE MJL-S11-1'!AI23 -> -18
A61: =A59+1 -> 29 | B61: -23 | C61: To decrease software rental expense as a result of true-up. | L61: ='SCHEDULE MJL-S11-1'!AJ23 -> -22
A63: =A61+1 -> 30 | B63: -24 | C63: To increase in Building rent charged to AMS allocated to Ameren Missouri as a result of true-up. | L63: ='SCHEDULE MJL-S11-1'!AK23 -> 38
A65: =A63+1 -> 31 | B65: -25 | C65: To remove EV Incentive costs | L65: ='SCHEDULE MJL-S11-1'!AL23 -> -1
A67: =A65+1 -> 32 | B67: -26 | C67: To include customer convenience fees | L67: ='SCHEDULE MJL-S11-1'!AM23 -> 461
A69: =A67+1 -> 33 | B69: -27 | C69: Intentionally left blank | L69: ='SCHEDULE MJL-S11-1'!AN23 -> 0
A71: =A69+1 -> 34 | B71: -28 | C71: To adjust outside call center costs to a 3 year average | L71: ='SCHEDULE MJL-S11-1'!AO23 -> 11
A73: =A71+1 -> 35 | B73: -29 | C73: To normalize injuries & damages to a 5 year average | L73: ='SCHEDULE MJL-S11-1'!AT23 -> -360
A75: =A73+1 -> 36 | B75: -30 | C75: Decrease test year expenses to annualize MPSC assessment | L75: ='SCHEDULE MJL-S11-1'!AU23 -> -6
A77: =1+A75 -> 37 | B77: Total Pro Forma Adjustments to Gas Operating and Maintenance Expenses | L77: =SUM(L10:L76) -> -42840

Sheet SCHEDULE MJL-S12-1
A1: AMEREN MISSOURI
B2: DEPRECIATION & AMORTIZATION EXPENSE
B3: ='SCHEDULE MJL-S5'!A3 -> FOR THE TWELVE MONTHS ENDED DECEMBER 31, 2020
B4: ($000)
D6: TOTALS | F6: ADJUSTED
D7: PER | F7: GAS
B8: LINE | C8: DESCRIPTION | D8: BOOKS | E8: ADJUSTMENTS(1) | F8: TOTALS
C9: (A) | D9: (B) | E9: (C) | F9: (D)
C11: DEPRECIATION EXPENSE:
B12: =1 -> 1 | C12: INTANGIBLE | D12: 917 | E12: =+'SCHEDULE MJL-S12-2'!E18+'SCHEDULE MJL-S12-2'!E27 -> 2465 | F12: =SUM(D12:E12) -> 3382
B13: =1+B12 -> 2 | C13: PRODUCTION | D13: 0 | E13: =+'SCHEDULE MJL-S12-2'!E14+'SCHEDULE MJL-S12-2'!E23 -> 0 | F13: 0
B14: =1+B13 -> 3 | C14: TRANSMISSION PLANT | D14: 107 | E14: =+'SCHEDULE MJL-S12-2'!E15+'SCHEDULE MJL-S12-2'!E24 -> -16 | F14: 91
B15: 4 | C15: DISTRIBUTION PLANT | D15: 10836 | E15: =+'SCHEDULE MJL-S12-2'!E16+'SCHEDULE MJL-S12-2'!E25 -> -899 | F15: 9937
B16: 5 | C16: GENERAL PLANT | D16: 2335 | E16: =+'SCHEDULE MJL-S12-2'!E17+'SCHEDULE MJL-S12-2'!E26+'SCHEDULE MJL-S12-2'!E31 -> -29 | F16: =SUM(D16:E16) -> 2306
B17: 6 | C17: INCENTIVE COMPENSATION | D17: 0 | E17: =+'SCHEDULE MJL-S12-2'!E33 -> -54 | F17: -54
B19: =1+B17 -> 7 | C19: TOTAL DEPRECIATION EXPENSE | D19: =SUM(D12:D18) -> 14195 | E19: =SUM(E12:E18) -> 1467 | F19: =SUM(F12:F18) -> 15662
C21: MISC. AMORTIZATION:
B22: =1+B19 -> 8 | C22: AMORTIZATION OF COVID AAO | D22: 0 | E22: ='SCHEDULE MJL-S12-2'!E35 -> 65 | F22: =SUM(D22:E22) -> 65
B23: =1+B22 -> 9 | C23: AMORTIZATION OF OVER/UNDER COLLECTION | D23: -187 | E23: ='SCHEDULE MJL-S12-2'!E39 -> 42 | F23: =SUM(D23:E23) -> -145
B24: =1+B23 -> 10 | C24: AMORTIZATION OF EXCESS TRACKER | D24: 6 | E24: ='SCHEDULE MJL-S12-2'!E37 -> 65 | F24: 71
B25: =1+B24 -> 11 | C25: AMORTIZATION OF LOW INCOME | D25: 0 | E25: 0 | F25: 0
B27: =1+B25 -> 12 | C27: TOTAL MISC AMORTIZATION | D27: =SUM(D22:D26) -> -181 | E27: =SUM(E22:E26) -> 172 | F27: =SUM(F22:F26) -> -9
B29: =1+B27 -> 13 | C29: TOTAL DEPR & AMORTIZATION EXPENSE | D29: =+D19+D27 -> 14014 | E29: =+E19+E27 -> 1639 | F29: =+F19+F27 -> 15653
B31: =1+B29 -> 14 | C31: (1) See SCHEDULE MJL-S12-2 for explanation of the pro forma adjustments.

Sheet SCHEDULE MJL-S12-2
A1: AMEREN MISSOURI
A2: GAS DEPRECIATION & AMORTIZATION EXPENSE PRO FORMA ADJUSTMENTS
A3: ='SCHEDULE MJL-S5'!A3 -> FOR THE TWELVE MONTHS ENDED DECEMBER 31, 2020
A4: ($000)
A8: LINE | B8: ITEM NO. | C8: DESCRIPTION | E8: ADJUSTMENTS
B9: (A) | C9: (B) | E9: (C)
A11: 1 | B11: -1 | C11: To reflect the book depreciation annualized for the plant in service depreciable balances at September 30, 2021
A12: =1+A11 -> 2
A14: =1+A12 -> 3 | C14: Change in Depr. Exp. - Production | E14: 0
A15: =1+A14 -> 4 | C15: Change in Depr. Exp. - Transmission | E15: -1
A16: =1+A15 -> 5 | C16: Change in Depr. Exp. - Distribution | E16: 773
A17: 6 | C17: Change in Depr. Exp. - General Plant | E17: 852
A18: =1+A17 -> 7 | C18: Change in Amort. Exp. - Intangible Plant | E18: 2465
A19: =1+A18 -> 8 | C19: Total Increase in Depreciation Expense | E19: =SUM(E14:E18) -> 4089
A21: =1+A19 -> 9 | B21: -2 | C21: Adjust depreciation expense to reflect the proposed rates
A23: =1+A21 -> 10 | C23: Change in Depr. Exp. - Production | E23: 0
A24: =1+A23 -> 11 | C24: Change in Depr. Exp. - Transmission | E24: -15
A25: =1+A24 -> 12 | C25: Change in Depr. Exp. - Distribution | E25: -1672
A26: 13 | C26: Change in Depr. Exp. - General Plant | E26: -183
A27: 14 | C27: Change in Amort. Exp. - Intangible Plant | E27: 0
A28: 15 | C28: Total Increase in Depreciation Expense | E28: =SUM(E23:E27) -> -1870
A30: =1+A28 -> 16 | B30: -3 | C30: To reduce depreciation expense charged to O&M
A31: =1+A30 -> 17 | C31: Decrease in Depr. Exp. - General Plant | E31: -698
A33: =1+A31 -> 18 | B33: -4 | C33: Depreciation on Incentive Compensation Capitalized | E33: -54
A35: =1+A33 -> 19 | B35: -5 | C35: Amortization of COVID AAO | E35: 65
A37: =1+A35 -> 20 | B37: -6 | C37: Amortization of Excess Tracker | E37: 65
A39: =1+A37 -> 21 | B39: -7 | C39: Amortization of Over/Under Collection | E39: 42
A41: =1+A39 -> 22 | B41: TOTAL PRO FORMA ADJUSTMENTS: DEPRECIATION & AMORTIZATION | E41: =SUM(E19,E28,E31:E39) -> 1639

Sheet SCHEDULE MJL-S13
A2: INTENTIONALLY LEFT BLANK

Sheet SCHEDULE MJL-S14-1
B1: AMEREN MISSOURI
B2: TAXES OTHER THAN INCOME TAXES
B3: ='SCHEDULE MJL-S5'!A3 -> FOR THE TWELVE MONTHS ENDED DECEMBER 31, 2020 | C3: ="FOR THE " & 'SCHEDULE MJL-S5'!#REF! ->  | D3: ="FOR THE " & 'SCHEDULE MJL-S5'!#REF! ->  | E3: ="FOR THE " & 'SCHEDULE MJL-S5'!#REF! ->  | F3: ="FOR THE " & 'SCHEDULE MJL-S5'!#REF! ->  | G3: ="FOR THE " & 'SCHEDULE MJL-S5'!#REF! -> 
B4: ($000)
E6: TOTAL | G6: ADJUSTED
E7: PER | G7: GAS
B8: LINE | C8: DESCRIPTION | E8: BOOKS | F8: ADJUSTMENTS(1) | G8: TOTALS
C9: (A) | E9: (B) | F9: (C) | G9: (D)
C11: PAYROLL TAXES
B12: 1 | C12: F.I.C.A. | D12: 165021 | E12: 1096 | F12: ='SCHEDULE MJL-S14-2'!K11 -> -16 | G12: =E12+F12 -> 1080
B13: =1+B12 -> 2 | C13: FEDERAL UNEMPLOYMENT | E13: 8 | F13: 0 | G13: =E13+F13 -> 8
B14: =1+B13 -> 3 | C14: MISSOURI UNEMPLOYMENT | E14: 0 | F14: 0 | G14: =E14+F14 -> 0
B15: =1+B14 -> 4 | C15: ST. LOUIS EMPLOYMENT TAX | E15: 0 | F15: 0 | G15: =E15+F15 -> 0
B16: =1+B15 -> 5 | C16: TOTAL PAYROLL TAXES | E16: =SUM(E12:E15) -> 1104 | F16: =SUM(F12:F15) -> -16 | G16: =SUM(G12:G15) -> 1088
C18: R.E., P.P. & CORP FRANCHISE
B19: =1+B16 -> 6 | C19: MISSOURI R.E., & P.P. | D19: 685910 | E19: 7999 | F19: 0 | G19: =SUM(E19:F19) -> 7999
B20: =1+B19 -> 7 | C20: OTHER STATES R.E. & P.P. | E20: 127 | F20: 0 | G20: 127
B21: 8 | C21: TOTAL R.E., P.P. & CORP FRANCHISE | D21: =SUM(D19:D20) -> 685910 | E21: =SUM(E19:E20) -> 8126 | F21: =SUM(F19:F20) -> 0 | G21: =SUM(G19:G20) -> 8126
B23: =1+B21 -> 9 | C23: MUNICIPAL GROSS RECEIPTS | E23: 5812 | F23: ='SCHEDULE MJL-S14-2'!K13 -> -5812 | G23: =SUM(E23:F23) -> 0
C25: MISCELLANEOUS
B26: =1+B23 -> 10 | C26: MISSOURI CORP FRANCHISE | E26: -13 | F26: 0 | G26: =E26+F26 -> -13
B27: =1+B26 -> 11 | C27: ILLINOIS CORP FRANCHISE | E27: 0 | F27: 0 | G27: =E27+F27 -> 0
B28: =1+B27 -> 12 | C28: MISCELLANEOUS | E28: 0 | F28: 0 | G28: =E28+F28 -> 0
B29: =1+B28 -> 13 | C29: TOTAL MISCELLANEOUS | E29: =SUM(E26:E28) -> -13 | F29: =SUM(F26:F28) -> 0 | G29: =SUM(G26:G28) -> -13
B32: =1+B29 -> 14 | C32: TOTAL TAXES OTHER THAN INCOME TAXES | E32: =E16+E21+E23+E29 -> 15029 | F32: =F16+F21+F23+F29 -> -5828 | G32: =G16+G21+G23+G29 -> 9201
B34: =1+B32 -> 15 | C34: (1) See SCHEDULE MJL-D13-2 for explanation of the pro forma adjustments.

Sheet SCHEDULE MJL-S14-2
A1: AMEREN MISSOURI
A2: TAXES OTHER THAN INCOME
A3: PRO FORMA ADJUSTMENTS
A4: ='SCHEDULE MJL-S5'!A3 -> FOR THE TWELVE MONTHS ENDED DECEMBER 31, 2020
A5: ($000)
A8: LINE | B8: ITEM NO. | C8: DESCRIPTION | K8: AMOUNT
B9: (A) | C9: (B) | K9: (C)
A11: 1 | B11: -1 | C11: Increase the F.I.C.A. taxes to reflect the pro forma wage adjustments. | K11: -16
A13: =1+A11 -> 2 | B13: -2 | C13: Eliminate the gross receipts tax as they are a pass through tax. | K13: -5812
A15: =1+A13 -> 3 | C15: Total Pro Forma Adjustments to Taxes Other Than Income | K15: =SUM(K10:K14) -> -5828

Sheet SCHEDULE MJL-S15
A1: AMEREN MISSOURI
A2: ="TOTAL GAS INCOME TAXES AT THE PROPOSED RETURN " & 'SCHEDULE MJL-S5'!A3 -> TOTAL GAS INCOME TAXES AT THE PROPOSED RETURN FOR THE TWELVE MONTHS ENDED DECEMBER 31, 2020
A3: ($000)
E6: TOTAL
A7: LINE | C7: DESCRIPTION | E7: GAS
C8: (A) | D8: (B) | E8: (C)
A10: 1 | C10: TOTAL GAS NET INCOME FROM OPERATIONS | E10: 21849
C12: ADD
A13: =1+A10 -> 2 | C13: CURRENT INCOME TAXES | E13: 4392
A14: =1+A13 -> 3 | C14: DEFERRED INCOME TAXES
A15: =1+A14 -> 4 | C15: DEFERRED INCOME TAX EXPENSE | E15: -1102
A16: =1+A15 -> 5 | C16: I.T.C. AMORTIZATION | E16: -46
A18: =1+A16 -> 6 | C18: TOTAL GAS NET INCOME BEFORE INCOME TAX | E18: =SUM(E10:E16) -> 25093
C20: ADDITIONS TO NET INCOME BEFORE INCOME TAX
A21: =1+A18 -> 7 | C21: BOOK DEPRECIATION | E21: 15653
A22: =1+A21 -> 8 | C22: BOOK DEPRECIATION CHARGED TO O&M | E22: 698
A23: 9 | C23: EQUITY ISSUANCE COSTS | E23: 0
A25: =1+A23 -> 10 | C25: TOTAL ADDITIONS | E25: =SUM(E21:E24) -> 16351
C27: SUBTRACTIONS TO NET INCOME BEFORE INCOME TAX
A28: =1+A25 -> 11 | C28: INTEREST ON DEBT (1) | E28: 5794
A29: =1+A28 -> 12 | C29: TAX STRAIGHT LINE | E29: 16621
A30: =1+A29 -> 13 | C30: RSU's perm item added from MPSC 0881 | E30: 44
A31: =1+A30 -> 14 | C31: PREFERRED DIVIDEND DEDUCTION | E31: 415
A33: =1+A31 -> 15 | C33: TOTAL SUBTRACTIONS | E33: =SUM(E28:E31) -> 22874
A35: =1+A33 -> 16 | C35: TOTAL GAS NET TAXABLE INCOME | E35: =E18+E25-E33 -> 18570
C37: FEDERAL INCOME TAX
A38: =1+A35 -> 17 | C38: NET TAXABLE INCOME | E38: =E35 -> 18570
A39: =1+A38 -> 18 | C39: DEDUCT MISSOURI INCOME TAX | E39: =+E51 -> 669
A40: =1+A39 -> 19 | C40: DEDUCT CITY EARNINGS TAX | E40: =+E58 -> -45
A41: =1+A40 -> 20 | C41: FEDERAL TAXABLE INCOME | E41: =E38-E39-E40 -> 17946
A43: =1+A41 -> 21 | C43: =" FEDERAL INCOME TAX" -> FEDERAL INCOME TAX | D43: 0.21 | E43: =ROUND(E41*D43,0)-1 -> 3768
C45: STATE INCOME TAXES
A46: =1+A43 -> 22 | C46: NET TAXABLE INCOME | E46: =E35 -> 18570
A47: =1+A46 -> 23 | C47: DEDUCT 50% OF FEDERAL INCOME TAX | E47: =ROUND(E43*0.5,0) -> 1884
A48: =1+A47 -> 24 | C48: DEDUCT CITY EARNINGS TAX | E48: =+E58 -> -45
A49: =1+A48 -> 25 | C49: MISSOURI TAXABLE INCOME | E49: =E46-E47-E48 -> 16731
A51: =1+A49 -> 26 | C51: TOTAL GAS MISSOURI INCOME TAX | D51: 0.04 | E51: =ROUND(E49*D51,0) -> 669
C53: CITY EARNINGS TAX
A54: =1+A51 -> 27 | C54: NET TAXABLE INCOME | E54: =+E35 -> 18570
A55: =1+A54 -> 28 | C55: LESS TAX ADJUSTMENTS TO INCOME | E55: -56912.35877
A56: =1+A55 -> 29 | C56: CITY TAXABLE INCOME | E56: =+E54+E55 -> -38342.35877
A58: =1+A56 -> 30 | C58: CITY EARNINGS TAX | D58: 0.001175 | E58: =ROUND(E56*D58,0) -> -45
A60: =+A58+1 -> 31 | C60: TOTAL GAS CURRENT INCOME TAXES | E60: =E43+E51+E58 -> 4392
C62: DEFERRED INCOME TAXES:
A63: =1+A60 -> 32 | C63: DEFERRED INCOME TAX EXPENSE | E63: =+E15 -> -1102
A64: =1+A63 -> 33 | C64: I.T.C. AMORTIZATION | E64: =+E16-1 -> -47
A65: =1+A64 -> 34 | C65: TOTAL GAS DEFERRED INCOME TAX | E65: =SUM(E63:E64) -> -1149
A67: =1+A65 -> 35 | C67: TOTAL GAS CURRENT & DEFERRED INCOME TAX | E67: =+E60+E65 -> 3243
A70: =1+A67 -> 36 | C70: (1) RATE BASE X EMBEDDED
A71: =1+A70 -> 37 | C71: COST OF DEBT. | D71: 0.01849

Sheet SCHEDULE MJL-S16
B1: AMEREN MISSOURI
B2: TOTAL GAS NET ORIGINAL COST RATE BASE AND REVENUE REQUIREMENT
B3: ='SCHEDULE MJL-S5'!A3 -> FOR THE TWELVE MONTHS ENDED DECEMBER 31, 2020
B4: ($000)
F6: TOTAL
F7: GAS
B8: LINE | C8: DESCRIPTION | D8: REFERENCE | F8: AMOUNT
C9: (A) | D9: (B) | F9: (C)
C11: A. TOTAL GAS NET ORIGINAL COST RATE BASE
B13: 1 | C13: ORIGINAL COST OF PLANT IN SERVICE | D13: SCHEDULE MJL-S1 | F13: =+'SCHEDULE MJL-S1-1'!G24 -> 615564
B14: =1+B13 -> 2 | C14: LESS: RESERVES FOR DEPRECIATION & AMORTIZATION | D14: SCHEDULE MJL-S2 | F14: =+'SCHEDULE MJL-S2-1'!G24 -> 225326
B15: =1+B14 -> 3 | C15: NET ORIGINAL COST OF PLANT | F15: =F13-F14 -> 390238
B16: 4 | C16: AVERAGE FUEL AND MATERIALS AND SUPPLIES | D16: SCHEDULE MJL-S3 | F16: =+'SCHEDULE MJL-S3'!F16 -> 6663
B17: 5 | C17: AVERAGE PREPAYMENTS | D17: SCHEDULE MJL-S4 | F17: =+'SCHEDULE MJL-S4'!G36 -> 850
B18: 6 | C18: CASH WORKING CAPITAL (LEAD/LAG) | D18: SCHEDULE MJL-S5 | F18: ='SCHEDULE MJL-S5'!J34 -> -2646
B19: 7 | C19: FEDERAL INCOME TAX CASH REQUIREMENT | D19: SCHEDULE MJL-S6 | F19: ='SCHEDULE MJL-S6'!J14 -> 15
B20: 8 | C20: STATE INCOME TAX CASH REQUIREMENT | D20: SCHEDULE MJL-S6 | F20: ='SCHEDULE MJL-S6'!J17 -> 3
B21: 9 | C21: CITY EARNINGS TAX CASH REQUIREMENT | D21: SCHEDULE MJL-S6 | F21: ='SCHEDULE MJL-S6'!J20 -> 29
B22: =1+B21 -> 10 | C22: INTEREST EXPENSE CASH REQUIREMENT | D22: SCHEDULE MJL-S6 | F22: ='SCHEDULE MJL-S6'!J23 -> -825
B23: =1+B22 -> 11 | C23: AVERAGE CUSTOMER ADVANCES FOR CONSTRUCTION | D23: SCHEDULE MJL-S7 | F23: ='SCHEDULE MJL-S7'!E13 -> -445
B24: 12 | C24: AVERAGE CUSTOMER DEPOSITS | D24: SCHEDULE MJL-S7 | F24: ='SCHEDULE MJL-S7'!E16 -> -711
B25: =1+B24 -> 13 | C25: PENSION TRACKER REG ASSET | D25: SCHEDULE MJL-S8 | F25: =+'SCHEDULE MJL-S8'!H15 -> -513
B26: =1+B25 -> 14 | C26: OPEB TRACKER REG LIABILITY | D26: SCHEDULE MJL-S8 | F26: =+'SCHEDULE MJL-S8'!H18 -> -933
B27: =1+B26 -> 15 | C27: ACCUMULATED DEFERRED INCOME TAXES | D27: SCHEDULE MJL-S9 | F27: =+'SCHEDULE MJL-S9'!H17 -> -78350
B29: =1+B27 -> 16 | C29: TOTAL GAS NET ORIGINAL COST RATE BASE | F29: =SUM(F15:F27) -> 313375
C31: B. TOTAL GAS REVENUE REQUIREMENT
C33: TOTAL GAS OPERATING EXPENSES:
B34: =1+B29 -> 17 | C34: PRODUCTION | D34: SCHEDULE MJL-S11-1 | F34: =+'SCHEDULE MJL-S11-1'!AW9 -> 760
B35: =1+B34 -> 18 | C35: TRANSMISSION | D35: SCHEDULE MJL-S11-1 | F35: =+'SCHEDULE MJL-S11-1'!AW11 -> 8
B36: 19 | C36: DISTRIBUTION | D36: SCHEDULE MJL-S11-1 | F36: =+'SCHEDULE MJL-S11-1'!AW13 -> 14342
B37: 20 | C37: CUSTOMER ACCOUNTS | D37: SCHEDULE MJL-S11-1 | F37: =+'SCHEDULE MJL-S11-1'!AW15 -> 6115
B38: 21 | C38: CUSTOMER SERVICE | D38: SCHEDULE MJL-S11-1 | F38: =+'SCHEDULE MJL-S11-1'!AW17 -> 804
B39: 22 | C39: SALES | D39: SCHEDULE MJL-S11-1 | F39: =+'SCHEDULE MJL-S11-1'!AW19 -> 55
B40: 23 | C40: ADMINISTRATIVE AND GENERAL | D40: SCHEDULE MJL-S11-1 | F40: =+'SCHEDULE MJL-S11-1'!AW21 -> 12972
B41: 24 | C41: TOTAL GAS OPERATING EXPENSES | F41: =SUM(F34:F40) -> 35056
B42: 25 | C42: DEPRECIATION AND AMORTIZATION | D42: SCHEDULE MJL-S12-1 | F42: =+'SCHEDULE MJL-S12-1'!F29 -> 15653
B43: 26 | C43: TAXES OTHER THAN INCOME TAXES | D43: SCHEDULE MJL-S14-1 | F43: =+'SCHEDULE MJL-S14-1'!G32 -> 9201
C44: INCOME TAXES-BASED ON PROPOSED RATE OF RETURN
B45: =1+B43 -> 27 | C45: FEDERAL | D45: SCHEDULE MJL-S15 | F45: =+'SCHEDULE MJL-S15'!E43 -> 3768
B46: =1+B45 -> 28 | C46: STATE | D46: SCHEDULE MJL-S15 | F46: =+'SCHEDULE MJL-S15'!E51 -> 669
B47: =1+B46 -> 29 | C47: CITY EARNINGS | D47: SCHEDULE MJL-S15 | F47: =+'SCHEDULE MJL-S15'!E58 -> -45
B48: =1+B47 -> 30 | C48: TOTAL INCOME TAXES | F48: =SUM(F45:F47) -> 4392
C49: DEFERRED INCOME TAXES | E49: 0
B50: =1+B48 -> 31 | C50: DEFERRED INCOME TAX EXPENSE | D50: SCHEDULE MJL-S15 | F50: =+'SCHEDULE MJL-S15'!E63 -> -1102
B51: =1+B50 -> 32 | C51: I.T.C. AMORTIZATION | D51: SCHEDULE MJL-S15 | F51: =+'SCHEDULE MJL-S15'!E64 -> -47
B52: =1+B51 -> 33 | C52: TOTAL DEFERRED INCOME TAXES | F52: =SUM(F50:F51) -> -1149
B54: =1+B52 -> 34 | C54: ="RETURN (RATE BASE * "&TEXT(D54,"0.000%")&")" -> RETURN (RATE BASE * 6.972%) | D54: 0.06972 | F54: =ROUND(D54*F29,0) -> 21849
B56: =1+B54 -> 35 | C56: TOTAL GAS REVENUE REQUIREMENT | F56: =+F41+F42+F43+F48+F52+F54 -> 85002

Sheet SCHEDULE MJL-S17
A1: AMEREN MISSOURI
A2: ="INCREASE REQUIRED TO PRODUCE "& TEXT('SCHEDULE MJL-S16'!D54,"0.000%") &" RETURN ON " -> INCREASE REQUIRED TO PRODUCE 6.972% RETURN ON
A3: TOTAL GAS NET ORIGINAL COST RATE BASE
A4: ='SCHEDULE MJL-S5'!A3 -> FOR THE TWELVE MONTHS ENDED DECEMBER 31, 2020
A5: ($000)
E8: TOTAL
E9: GAS
A10: LINE | C10: DESCRIPTION | E10: AMOUNT
C11: (A) | E11: (B)
A13: 1 | C13: TOTAL GAS NET ORIGINAL COST RATE BASE | E13: ='SCHEDULE MJL-S16'!F29 -> 313375
C15: TOTAL GAS REVENUE REQUIREMENT:
A16: =1+A13 -> 2 | C16: ="RETURN AT PROPOSED RATE ("&TEXT('SCHEDULE MJL-S16'!D54,"0.000%")&")" -> RETURN AT PROPOSED RATE (6.972%) | E16: ='SCHEDULE MJL-S16'!F54 -> 21849
A17: =1+A16 -> 3 | C17: OPERATING AND MAINTENANCE EXPENSES | E17: ='SCHEDULE MJL-S16'!F41 -> 35056
A18: 4 | C18: DEPRECIATION AND AMORTIZATION | E18: ='SCHEDULE MJL-S16'!F42 -> 15653
A19: 5 | C19: TAXES OTHER THAN INCOME | E19: ='SCHEDULE MJL-S16'!F43 -> 9201
A20: 6 | C20: FEDERAL AND STATE INCOME AND CITY EARNINGS TAXES AT CLAIMED RETURN | E20: ='SCHEDULE MJL-S16'!F45+'SCHEDULE MJL-S16'!F46+'SCHEDULE MJL-S16'!F47 -> 4392
A21: 7 | C21: DEFERRED INCOME TAXES | E21: ='SCHEDULE MJL-S16'!F52 -> -1149
A22: 8 | C22: TOTAL GAS REVENUE REQUIREMENT | E22: =SUM(E16:E21) -> 85002
A25: =1+A22 -> 9 | C25: PRO FORMA TOTAL GAS OPERATING REVENUE AT PRESENT RATES | E25: =+'SCHEDULE MJL-S10'!F19 -> 77467
A27: =1+A25 -> 10 | C27: DEFICIENCY IN TOTAL GAS OPERATING REVENUE | E27: =E22-E25 -> 7535
F30: =+UPPER(C30) -> 
